bitfinex-derivatives/quotes_ETHF0:USTF0_20251005
["timestamp","ask_amount","ask_price","bid_price","bid_amount"]
[1759667289401,7.83071657,4546.4,4546.3,0.55165313]
[1759667289602,1.61134541,4546.4,4546.3,0.55165313]
[1759667289803,0.7539,4545.7,4545.6,0.7555]
[1759667290099,6.97327116,4545.7,4545.6,0.7555]
[1759667290301,0.7539,4545.7,4545.6,0.7555]
[1759667290807,0.7539,4545.7,4545.6,0.75831429]
[1759667296602,0.5348,4546.0,4545.9,0.2061]
[1759667296807,0.5348,4546.0,4545.9,0.7555]
[1759667296808,0.2189,4546.0,4545.9,0.7555]
[1759667297008,6.43827116,4546.0,4545.9,0.7555]
[1759667298210,6.83414116,4546.0,4545.9,0.7555]
[1759667298413,7.15484116,4546.0,4545.9,0.7555]
[1759667298809,7.35964116,4546.0,4545.9,0.7555]
[1759667300107,1.14027,4546.0,4545.9,0.7555]
[1759667300310,7.35964116,4546.0,4545.9,0.7555]
[1759667301313,7.35964116,4546.0,4545.9,0.5494]
[1759667301516,7.49204116,4546.0,4545.9,0.5494]
[1759667302916,7.35964116,4546.0,4545.9,0.5494]
[1759667303216,7.35964116,4546.0,4545.9,0.7608]
[1759667304720,7.49204116,4546.0,4545.9,0.5494]
[1759667305115,7.49204116,4546.0,4545.6,0.00281429]
[1759667305317,1.13689,4545.7,4545.6,0.51951429]
[1759667305709,0.39589,4545.8,4545.7,0.39588]
[1759667305912,0.93209,4545.8,4545.7,1.12398]
[1759667306113,1.13689,4545.8,4545.7,1.12398]
[1759667306618,1.13689,4545.8,4545.7,0.7281]
[1759667307119,7.35626116,4545.8,4545.7,0.3121]
[1759667307322,0.39589,4545.7,4545.6,0.00281429]
[1759667307514,1.13689,4545.7,4545.6,0.00281429]
[1759667309914,1.13689,4545.7,4545.6,0.31491429]
[1759667310419,1.13689,4545.7,4545.6,0.00281429]
[1759667313118,1.13689,4545.7,4545.6,0.31491429]
[1759667314217,1.13689,4545.7,4545.6,0.00281429]
[1759667315020,1.35789,4545.7,4545.6,0.00281429]
[1759667315224,1.82030337,4545.7,4545.6,0.00281429]
[1759667317820,1.82030337,4545.7,4545.6,0.93741429]
[1759667318021,1.82030337,4545.7,4545.6,0.54151429]
[1759667318629,1.82030337,4545.7,4545.6,0.00281429]
[1759667322235,4.66145315,4545.7,4545.6,0.00281429]
[1759667323230,1.15237,4544.8,4544.7,1.57669812]
[1759667323431,6.97577116,4544.8,4544.7,1.14048]
[1759667323637,6.66127116,4544.8,4544.7,1.14048]
[1759667324225,6.97577116,4544.8,4544.7,1.14263475]
[1759667326233,6.97577116,4544.8,4544.7,0.74665475]
[1759667326432,6.97577116,4544.8,4544.7,0.54085475]
[1759667329335,6.75977116,4544.8,4544.7,0.74665475]
[1759667329740,0.2223,4545.5,4545.4,0.4392]
[1759667329931,1.22611039,4545.5,4545.4,0.7523]
[1759667330238,1.22610321,4545.5,4545.4,0.7523]
[1759667331142,0.7638,4545.5,4545.4,0.7523]
[1759667331339,1.15971,4545.5,4545.4,0.7523]
[1759667331640,0.7638,4545.5,4545.4,0.7523]
[1759667333139,0.4369,4545.5,4545.4,0.7523]
[1759667333343,0.7638,4545.5,4545.4,0.7523]
[1759667336238,0.7638,4545.5,4545.4,1.14822]
[1759667336440,1.15971,4545.5,4545.4,1.14822]
[1759667339738,0.7638,4545.5,4545.4,1.14822]
[1759667340137,1.15971,4545.5,4545.4,1.14822]
[1759667340442,1.28741,4545.5,4545.4,0.5309]
[1759667341546,0.8915,4545.5,4545.4,0.92682]
[1759667342148,1.28741,4545.5,4545.4,0.92682]
[1759667342447,1.28741,4545.5,4545.4,0.39592]
[1759667342746,0.2146,4545.2,4545.1,3.9597]
[1759667342952,1.15974,4545.2,4545.1,3.9597]
[1759667343152,1.15974,4545.2,4545.1,0.7519]
[1759667343646,1.15974,4545.2,4544.9,0.39596]
[1759667343647,0.39595,4545.1,4544.9,0.39596]
[1759667343851,0.8915,4545.0,4544.9,0.39596]
[1759667344244,1.28746,4545.0,4544.8,0.3131]
[1759667344545,0.5646,4545.0,4544.9,0.39596]
[1759667344739,0.5646,4545.0,4544.9,0.92686]
[1759667345147,1.28746,4545.0,4544.9,0.39596]
[1759667345549,0.4369,4544.8,4544.7,0.83692475]
[1759667345745,0.7638,4544.8,4544.7,1.15002475]
[1759667346149,0.7638,4544.8,4544.7,0.61912475]
[1759667346349,0.7638,4544.8,4544.7,1.15002475]
[1759667346650,0.7638,4544.8,4544.7,1.37142475]
[1759667349548,0.7638,4544.8,4544.7,0.39812475]
[1759667349748,0.7638,4544.8,4544.7,0.92902475]
[1759667350455,0.7638,4544.8,4544.7,0.39812475]
[1759667350650,0.7638,4544.8,4544.7,0.92902475]
[1759667351053,1.15977,4544.8,4544.7,0.00215475]
[1759667352055,1.15977,4544.8,4544.7,0.39813475]
[1759667352455,1.15977,4544.8,4544.7,0.00215475]
[1759667353357,1.15977,4544.8,4544.7,0.39813475]
[1759667354450,1.15977,4544.8,4544.7,0.71123475]
[1759667354949,0.7638,4544.8,4544.7,0.71123475]
[1759667355356,0.7638,4544.8,4544.7,1.15043475]
[1759667355655,0.5492,4545.2,4545.1,1.14825]
[1759667355852,1.2266797,4545.2,4545.1,1.14825]
[1759667356259,0.7638,4545.2,4545.1,4.35605]
[1759667356451,0.4369,4545.2,4545.1,4.35605]
[1759667356648,0.2223,4545.5,4545.4,0.61371]
[1759667356851,0.61821,4545.5,4545.4,0.7523]
[1759667357057,1.15971,4545.5,4545.4,0.7523]
[1759667357953,1.15971,4545.5,4545.4,0.5309]
[1759667358453,0.3127,4545.4,4545.2,0.221]
[1759667358660,0.7436,4545.3,4545.2,0.221]
[1759667358858,0.7436,4545.3,4545.2,0.5494]
[1759667359155,1.13956,4545.0,4544.9,0.5343]
[1759667359660,1.13956,4545.0,4544.9,0.7396]
[1759667360056,0.214,4545.0,4544.9,0.7396]
[1759667360657,0.5267,4545.0,4544.9,0.7396]
[1759667363869,0.92266,4545.0,4544.9,1.13556]
[1759667364565,1.13956,4545.0,4544.9,1.13556]
[1759667364764,1.13956,4545.0,4544.9,0.7396]
[1759667368162,1.13956,4545.0,4544.9,1.13556]
[1759667368866,0.60996,4545.0,4544.9,1.13556]
[1759667369565,0.92266,4545.0,4544.9,1.13556]
[1759667371369,0.39596,4545.0,4544.9,1.13556]
[1759667371570,0.60996,4545.0,4544.9,1.13556]
[1759667372563,0.39595,4545.1,4545.0,0.51926]
[1759667372770,0.39595,4545.1,4545.0,1.48556]
[1759667373172,0.39594,4545.2,4545.1,0.83224]
[1759667373367,0.39594,4545.2,4545.1,1.14124]
[1759667374370,0.39594,4545.2,4545.1,4.34904]
[1759667374869,1.15423,4545.4,4545.3,0.7453]
[1759667375070,1.6174076,4545.4,4545.3,0.7453]
[1759667375672,1.15423,4545.4,4545.3,0.7453]
[1759667376068,1.15423,4545.4,4545.3,1.14123]
[1759667376266,1.15423,4545.4,4545.3,0.7453]
[1759667378176,1.15423,4545.4,4545.3,1.14123]
[1759667380272,1.15423,4545.4,4545.3,0.7453]
[1759667380875,1.61733475,4545.4,4545.3,0.7453]
[1759667382874,1.61733475,4545.4,4545.3,1.14123]
[1759667383175,0.3235,4545.7,4545.3,1.14123]
[1759667383477,0.7583,4545.7,4545.6,0.7453]
[1759667383673,1.22156014,4545.7,4545.6,0.7453]
[1759667383870,0.89806014,4545.7,4545.6,0.7453]
[1759667384075,0.46326014,4545.7,4545.6,0.7453]
[1759667384383,1.40715014,4545.7,4545.6,0.7453]
[1759667385278,1.61745014,4545.7,4545.6,0.7453]
[1759667393995,1.61745014,4545.7,4545.6,1.1412]
[1759667394894,1.61745014,4545.7,4545.6,0.7453]
[1759667400993,1.1531,4545.6,4545.5,0.221]
[1759667401198,0.7572,4545.2,4545.1,3.5432]
[1759667401501,0.7572,4545.2,4545.1,3.7566]
[1759667401705,1.15314,4545.2,4545.1,3.7566]
[1759667403200,1.15314,4545.2,4545.1,3.5432]
[1759667403402,1.15314,4545.2,4545.1,3.7566]
[1759667403602,1.15314,4545.2,4545.1,3.9787]
[1759667404201,1.1186,4545.5,4545.0,1.40171812]
[1759667404202,0.84045,4545.1,4545.0,0.221]
[1759667404506,1.15315,4545.1,4545.0,0.221]
[1759667404803,1.15315,4545.1,4545.0,0.7698]
[1759667405595,0.7572,4545.1,4545.0,1.16576]
[1759667405799,1.15315,4545.1,4545.0,0.7698]
[1759667408507,0.39596,4544.9,4544.8,1.18071812]
[1759667408703,1.15317,4544.8,4544.7,0.22315475]
[1759667408905,1.61637953,4544.8,4544.7,0.00215475]
[1759667409107,1.61637953,4544.8,4544.7,0.55095475]
[1759667410005,1.61637953,4544.8,4544.7,0.00215475]
[1759667410410,1.15317,4544.8,4544.7,0.00215475]
[1759667412515,1.15317,4544.8,4544.7,0.33755475]
[1759667413321,1.15317,4544.8,4544.7,0.55095475]
[1759667416717,1.15317,4544.8,4544.7,0.00215475]
[1759667416918,1.15317,4544.8,4544.7,0.94693475]
[1759667417708,1.15317,4544.8,4544.7,1.16903475]
[1759667417916,1.179,4545.2,4545.1,0.82505]
[1759667418216,1.179,4545.2,4545.1,1.37265]
[1759667419211,1.3915,4545.2,4545.1,1.37265]
[1759667419412,1.78744,4545.2,4545.1,1.37265]
[1759667419614,2.11934,4545.2,4545.1,1.37265]
[1759667419815,2.32764,4545.2,4545.1,1.37265]
[1759667420113,2.32764,4545.2,4545.1,0.754]
[1759667420311,2.32764,4545.2,4545.1,0.221]
[1759667420512,2.32764,4545.2,4545.1,0.754]
[1759667420717,1.9317,4545.2,4545.1,1.14995]
[1759667421325,0.7527,4545.2,4545.1,1.14995]
[1759667421519,0.7527,4545.2,4545.1,1.37265]
[1759667423928,1.7861,4545.6,4545.5,1.28311]
[1759667424428,0.6084,4545.6,4545.5,1.28311]
[1759667424626,0.9403,4545.6,4545.5,1.28311]
[1759667425225,1.1486,4545.6,4545.5,0.8872]
[1759667426320,0.3959,4545.7,4545.5,1.28311]
[1759667426521,0.3959,4545.7,4545.5,0.95651]
[1759667426828,0.9403,4545.7,4545.6,0.7557]
[1759667427422,1.1486,4545.7,4545.6,0.7557]
[1759667428526,2.583,4546.0,4545.9,0.82498]
[1759667428731,0.39586,4546.1,4545.9,1.37258]
[1759667429027,4.14802,4546.5,4546.4,0.7557]
[1759667429222,4.81885392,4546.5,4546.4,0.7557]
[1759667429423,1.61105392,4546.5,4546.4,0.7557]
[1759667430026,0.85835392,4546.5,4546.4,0.7557]
[1759667430427,0.60832,4546.5,4546.4,0.7557]
[1759667431134,0.94022,4546.5,4546.4,0.7557]
[1759667431728,0.2125,4546.5,4546.4,1.15153]
[1759667432635,1.14272,4546.5,4546.4,0.7557]
[1759667433633,2.3889,4546.8,4546.7,1.17191]
[1759667433933,1.2575,4546.8,4546.7,1.39291]
[1759667434440,0.93599,4546.9,4546.8,0.7761]
[1759667434737,1.14499,4546.9,4546.8,0.7761]
[1759667435036,1.14499,4546.9,4546.8,0.221]
[1759667436831,1.14499,4546.9,4546.8,0.5559]
[1759667438436,1.14499,4546.9,4546.8,0.221]
[1759667438635,1.14499,4546.9,4546.8,0.5559]
[1759667439336,0.7492,4546.9,4546.8,0.9517]
[1759667439533,2.0325,4547.2,4547.1,0.39577]
[1759667439733,1.7071,4547.2,4547.1,1.39287]
[1759667439944,1.056,4547.2,4547.1,4.60067]
[1759667440336,1.3814,4547.2,4547.1,4.60067]
[1759667441240,0.2148,4547.2,4547.1,4.60067]
[1759667442439,0.21696806,4547.4,4547.3,1.17186]
[1759667442738,0.21696806,4547.4,4547.3,1.39286]
[1759667443037,0.00216806,4547.4,4547.3,1.39286]
[1759667444343,0.75136806,4547.4,4547.3,0.9971]
[1759667444533,0.75136806,4547.4,4547.3,0.7812]
[1759667445139,0.75136806,4547.4,4547.3,0.9971]
[1759667448437,0.54236806,4547.4,4547.3,0.9971]
[1759667448643,0.00216806,4547.4,4547.3,0.9971]
[1759667449344,0.00216806,4547.4,4547.3,1.39286]
[1759667460157,1e-08,4547.4,4547.3,1.39286]
[1759667460353,0.3092,4548.4,4547.3,1.39286]
[1759667460354,0.92455,4548.6,4548.5,0.888]
[1759667460654,1.60182215,4548.6,4548.5,0.888]
[1759667460948,1.60181215,4548.6,4548.5,0.7631]
[1759667461347,1.20861367,4548.6,4548.5,0.76474774]
[1759667465155,0.74714152,4548.6,4548.5,0.88964774]
[1759667466846,0.00244152,4548.6,4548.5,0.88964774]
[1759667467052,0.00244152,4548.6,4548.5,1.28529774]
[1759667467551,1.9994,4549.0,4548.9,1.15872]
[1759667467851,0.83106,4549.5,4549.4,0.4264]
[1759667468050,1.60087419,4549.5,4549.4,0.7631]
[1759667468453,1.60305541,4549.5,4549.4,0.7631]
[1759667468855,1.72835541,4549.5,4549.4,0.5438]
[1759667469050,1.72835541,4549.5,4548.9,3.2078]
[1759667469051,1.26561,4549.0,4548.9,3.2078]
[1759667469357,0.7447,4548.6,4548.5,0.54544774]
[1759667469653,0.7447,4548.6,4548.5,0.76544774]
[1759667469858,0.7447,4548.6,4548.5,0.98474774]
[1759667470446,0.7447,4548.6,4548.5,1.50529774]
[1759667470647,0.7447,4548.6,4548.5,1.10964774]
[1759667471254,0.7447,4548.6,4548.5,1.50529774]
[1759667472256,0.4355,4548.6,4548.5,1.50529774]
[1759667472455,0.2197,4548.6,4548.5,1.50529774]
[1759667472758,0.7447,4548.6,4548.5,1.50529774]
[1759667474259,0.4355,4548.6,4548.5,1.50529774]
[1759667474760,0.2197,4548.6,4548.5,1.50529774]
[1759667475052,0.9328,4549.0,4548.9,1.15872]
[1759667475053,0.8075,4549.0,4548.9,1.15872]
[1759667475360,0.2197,4549.0,4548.9,0.9831]
[1759667475660,0.2197,4549.0,4548.9,4.58652]
[1759667476157,1.0154,4549.4,4549.3,1.15868]
[1759667476459,0.5289,4549.4,4549.3,0.9831]
[1759667476662,0.7447,4549.4,4549.3,0.9831]
[1759667477754,1.14027,4549.4,4549.3,0.9831]
[1759667478853,0.7447,4549.4,4549.3,0.9831]
[1759667479053,0.7447,4549.4,4549.3,1.37868]
[1759667480059,0.00218122,4549.5,4549.4,1.15057]
[1759667480761,0.22748122,4549.5,4549.4,1.15057]
[1759667480959,0.53508122,4549.5,4549.4,1.15057]
[1759667481559,0.22748122,4549.5,4549.4,1.15057]
[1759667482861,0.53508122,4549.5,4549.4,0.755]
[1759667483060,0.53508122,4549.5,4549.4,1.15057]
[1759667483361,0.22748122,4549.5,4549.4,1.15057]
[1759667483561,0.00218122,4549.5,4549.4,1.15057]
[1759667485162,0.22748122,4549.5,4549.4,1.15057]
[1759667485463,0.00218122,4549.5,4549.4,1.15057]
[1759667486053,0.22748122,4549.5,4549.4,1.15057]
[1759667487063,0.00218122,4549.5,4549.4,1.15057]
[1759667489260,0.00218122,4549.5,4549.4,4.35837]
[1759667492370,0.22748122,4549.5,4549.4,4.35837]
[1759667492569,0.00218122,4549.5,4549.4,4.35837]
[1759667495257,0.00218122,4549.5,4549.4,3.9628]
[1759667495463,0.74188122,4549.5,4549.4,4.57837]
[1759667496867,1.13744122,4549.5,4549.4,0.7642]
[1759667497175,1.59765062,4549.5,4549.4,0.7642]
[1759667497475,1.73285062,4549.5,4549.4,0.22]
[1759667497773,6.73285062,4549.5,4549.4,0.22]
[1759667499076,6.33729062,4549.5,4549.4,0.22]
[1759667499275,6.73285062,4549.5,4549.4,0.22]
[1759667499675,6.33729062,4549.5,4549.4,0.22]
[1759667501275,6.33729062,4549.5,4549.4,0.61557]
[1759667501475,6.33729062,4549.5,4549.4,1.15977]
[1759667502272,6.33729062,4549.5,4549.4,0.93977]
[1759667502471,0.46239062,4549.5,4549.4,1.15647]
[1759667502676,0.00218122,4549.5,4549.4,1.15647]
[1759667502875,0.22198122,4549.5,4549.4,1.15647]
[1759667503170,0.74188122,4549.5,4549.4,1.15647]
[1759667503377,1.20235278,4549.5,4549.4,0.93977]
[1759667504585,1.20235278,4549.5,4549.4,1.15647]
[1759667510782,0.89215278,4549.5,4549.4,1.15647]
[1759667512381,0.68245278,4549.5,4549.4,4.36427]
[1759667517589,0.46265278,4549.5,4549.4,4.36427]
[1759667518792,1.00675278,4549.5,4549.4,1.15647]
[1759667519092,1.21195278,4549.5,4549.4,1.15647]
[1759667519890,1.21195278,4549.5,4549.4,0.7609]
[1759667520097,1.21195278,4549.5,4549.4,1.15647]
[1759667520299,1.21195278,4549.5,4549.4,0.7609]
[1759667520995,1.21195278,4549.5,4549.4,1.15647]
[1759667522697,1.60751278,4549.5,4549.4,0.332]
[1759667522901,1.21195278,4549.5,4549.4,0.332]
[1759667523201,1.34685278,4549.5,4549.4,0.332]
[1759667523401,1.34685278,4549.5,4549.4,0.72757]
[1759667523598,0.75148122,4549.5,4549.4,1.15527]
[1759667523804,1.21221252,4549.5,4549.4,1.15527]
[1759667524996,0.67791252,4549.5,4549.4,1.15527]
[1759667525196,0.46291252,4549.5,4549.4,4.36307]
[1759667525395,0.00218122,4549.5,4549.4,5.54378812]
[1759667526299,0.00218122,4549.5,4549.4,5.5493394]
[1759667526699,0.00218122,4549.5,4549.4,4.36307]
[1759667527100,0.00218122,4549.5,4549.4,9.36307]
[1759667527407,1.9853,4549.6,4549.4,9.36307]
[1759667527697,1.9853,4549.6,4549.5,0.8703]
[1759667528505,1.98725699,4549.6,4549.5,0.8703]
[1759667530097,2.20225699,4549.6,4549.5,1.0903]
[1759667533307,2.73655699,4549.6,4549.5,1.0903]
[1759667533809,2.73655699,4549.6,4549.5,0.9572]
[1759667536313,2.20225699,4549.6,4549.5,1.0903]
[1759667536613,1.98725699,4549.6,4549.5,1.0903]
[1759667537211,2.20225699,4549.6,4549.5,1.0903]
[1759667538813,1.98725699,4549.6,4549.5,1.0903]
[1759667540212,2.20555699,4549.6,4549.5,1.0903]
[1759667540615,2.53185699,4549.6,4549.5,1.0903]
[1759667540914,2.53185699,4549.6,4549.5,2.67089312]
[1759667541621,2.20555699,4549.6,4549.5,2.67089312]
[1759667545726,2.53185699,4549.6,4549.5,2.67089312]
[1759667546327,2.74465699,4549.6,4549.5,2.67089312]
[1759667547625,2.74465699,4549.6,4549.5,2.53779312]
[1759667548023,2.74465699,4549.6,4549.5,1.35276]
[1759667548224,2.74465699,4549.6,4549.5,2.53779312]
[1759667549027,2.74465699,4549.6,4549.5,2.66399312]
[1759667553232,2.74465699,4549.6,4549.5,1.47896]
[1759667554034,2.74465699,4549.6,4549.5,1.35276]
[1759667554933,2.74465699,4549.6,4549.5,0.61556]
[1759667555829,3.14021699,4549.6,4549.5,0.22]
[1759667556035,3.60367127,4549.6,4549.5,0.22]
[1759667556234,8.42811127,4549.6,4548.9,4.39450332]
[1759667556531,8.42811127,4549.6,4548.5,0.00164774]
[1759667556532,0.7441,4548.6,4548.5,0.00164774]
[1759667556731,1.20755428,4548.6,4548.5,0.22164774]
[1759667556933,0.4827,4548.5,4548.0,1.18670332]
[1759667557134,0.7441,4547.9,4547.8,3.2078]
[1759667557327,0.7441,4547.9,4547.8,3.4278]
[1759667557733,0.7441,4547.9,4547.8,3.7572]
[1759667557927,0.7441,4547.9,4547.8,3.98447294]
[1759667558635,1.7772,4547.9,4547.8,3.98447294]
[1759667560737,1.7772,4547.9,4547.8,0.22187294]
[1759667561443,1.7772,4547.9,4547.8,0.00187294]
[1759667561631,2.9105,4547.9,4547.8,0.00187294]
[1759667562332,7.9105,4547.9,4547.8,0.00187294]
[1759667562725,2.9105,4547.9,4547.8,0.00187294]
[1759667564333,2.1664,4547.9,4547.8,0.98217294]
[1759667564538,2.1664,4547.9,4547.8,4.18997294]
[1759667564838,2.3726,4547.9,4547.8,4.18997294]
[1759667565631,2.1664,4547.9,4547.8,4.18997294]
[1759667566230,2.3726,4547.9,4547.8,4.18997294]
[1759667567733,2.5817,4547.9,4547.8,4.18997294]
[1759667568329,2.1664,4547.9,4547.8,4.18997294]
[1759667571339,2.1664,4547.9,4547.8,4.58568294]
[1759667572040,2.3863,4547.9,4547.8,4.58568294]
[1759667574536,2.9116,4547.9,4547.8,4.58568294]
[1759667574741,2.9116,4547.9,4547.8,4.38018294]
[1759667575443,2.9116,4547.9,4547.8,4.60588294]
[1759667575644,2.6049,4547.9,4547.8,4.60588294]
[1759667576347,2.9116,4547.9,4547.8,4.60588294]
[1759667577544,2.6049,4547.9,4547.8,4.60588294]
[1759667581251,2.3863,4547.9,4547.8,4.60588294]
[1759667583844,2.1664,4547.9,4547.8,4.60588294]
[1759667585350,2.1664,4547.9,4547.8,5.79258626]
[1759667585559,2.1664,4547.9,4547.8,4.60588294]
[1759667585852,2.1664,4547.9,4547.8,5.79258626]
[1759667586057,2.1664,4547.9,4547.8,10.79258626]
[1759667586250,2.1664,4547.9,4547.8,9.60588294]
[1759667588556,2.1664,4547.9,4547.8,11.18037847]
[1759667590557,2.1664,4547.9,4547.8,9.60588294]
[1759667593660,0.33679015,4547.9,4547.8,9.60588294]
[1759667593866,0.5266,4549.0,4548.9,1.14262]
[1759667594056,0.7452,4549.0,4548.9,4.57042]
[1759667598575,1.7093,4549.4,4549.3,1.14978]
[1759667598871,1.38,4549.4,4549.3,1.36978]
[1759667599968,1.38,4549.4,4549.3,0.9742]
[1759667600466,1.77557,4549.4,4549.3,0.22]
[1759667602171,1.15477,4549.4,4549.3,0.22]
[1759667602770,0.00195699,4549.6,4549.5,0.8826]
[1759667602966,0.00195699,4549.6,4549.5,4.3104]
[1759667603673,0.00195699,4549.6,4549.5,4.48633548]
[1759667604875,0.00195699,4549.6,4549.5,4.3104]
[1759667605978,0.76115699,4549.6,4549.5,4.182]
[1759667606869,0.76115699,4549.6,4549.5,3.9639]
[1759667607069,0.76115699,4549.6,4549.5,4.182]
[1759667607874,0.76115699,4549.6,4549.5,4.3104]
[1759667608078,0.54095699,4549.6,4549.5,4.3104]
[1759667610082,0.76115699,4549.6,4549.5,4.182]
[1759667610283,0.76115699,4549.6,4549.5,4.57756]
[1759667613685,0.76115699,4549.6,4549.5,1.36976]
[1759667614778,1.15671699,4549.6,4549.5,0.444]
[1759667614983,1.15671699,4549.6,4549.5,0.22]
[1759667615381,6.15671699,4549.6,4549.5,0.22]
[1759667616480,0.7579,4548.9,4548.8,0.39562]
[1759667616684,0.7579,4548.9,4548.8,1.37432]
[1759667617082,0.5413,4548.9,4548.8,1.37432]
[1759667618289,0.7579,4548.9,4548.8,1.37432]
[1759667618491,0.7579,4548.9,4548.8,0.9787]
[1759667618789,6.15352,4548.9,4548.8,0.22]
[1759667619688,1.15359,4548.1,4548.0,0.7587]
[1759667619986,0.7579,4548.1,4548.0,0.9787]
[1759667620385,0.7579,4548.1,4548.0,0.22]
[1759667620789,0.7579,4548.1,4548.0,0.4331]
[1759667620983,0.5413,4548.1,4548.0,0.9787]
[1759667621192,0.39567,4548.4,4548.2,0.4353]
[1759667621487,0.93697,4548.4,4548.3,0.9787]
[1759667621988,0.5413,4548.4,4548.3,0.9787]
[1759667623591,0.7579,4548.4,4548.3,0.9787]
[1759667624094,0.7579,4548.4,4548.3,0.4331]
[1759667624295,0.7579,4548.4,4548.3,0.22]
[1759667624992,0.5667,4548.0,4547.9,0.3234]
[1759667625191,1.1536,4547.9,4547.8,0.00187294]
[1759667625597,1.1536,4547.9,4547.8,0.21497294]
[1759667626289,1.1536,4547.9,4547.8,0.53837294]
[1759667626796,1.1536,4547.9,4547.8,0.21497294]
[1759667627502,1.1536,4547.9,4547.8,0.54237294]
[1759667628392,0.3147,4548.4,4547.9,0.3274]
[1759667628699,1.12948,4548.2,4548.1,0.7548]
[1759667629898,1.12948,4548.2,4548.1,0.2032]
[1759667631695,0.858,4548.0,4547.9,0.5989]
[1759667631896,0.2109,4548.0,4547.9,1.1505]
[1759667632100,0.5256,4548.0,4547.9,1.1505]
[1759667633002,0.2109,4548.0,4547.9,1.1505]
[1759667633306,0.5256,4548.3,4548.2,0.7548]
[1759667633493,0.2109,4548.3,4548.2,3.9626]
[1759667633699,0.5256,4548.6,4548.5,0.8883]
[1759667633997,0.5256,4548.6,4548.5,1.28395]
[1759667633998,0.2109,4548.6,4548.5,1.28395]
[1759667634897,4.33717,4549.4,4549.3,0.7548]
[1759667635102,0.81471,4549.0,4548.9,0.7548]
[1759667635294,1.12941,4549.0,4548.9,0.7548]
[1759667635901,0.7338,4549.0,4548.9,0.7548]
[1759667636891,0.00195699,4549.6,4549.0,0.1335]
[1759667637096,0.00195699,4549.6,4549.1,0.9748]
[1759667637097,0.7338,4549.2,4549.1,0.9748]
[1759667640398,0.3147,4549.5,4549.3,0.39558]
[1759667640601,0.52755699,4549.6,4549.5,0.8883]
[1759667640902,0.92311699,4549.6,4549.5,0.8883]
[1759667641102,0.60841699,4549.6,4549.5,0.8883]
[1759667641302,0.21285699,4549.6,4549.5,0.8883]
[1759667641501,0.73575699,4549.6,4549.5,0.7548]
[1759667641714,0.73575699,4549.6,4549.5,0.2032]
[1759667642204,0.73575699,4549.6,4549.5,0.7548]
[1759667643101,0.73575699,4549.6,4548.8,3.2078]
[1759667643102,5.31665699,4549.6,4548.8,3.2078]
[1759667643306,0.7338,4548.9,4548.8,3.2078]
[1759667643494,0.7338,4548.9,4548.8,3.631]
[1759667643695,0.7338,4548.9,4548.8,0.22]
[1759667644301,0.7338,4548.9,4548.8,0.4232]
[1759667645303,0.7338,4548.9,4548.8,0.7506]
[1759667645507,0.4191,4549.3,4549.2,0.2032]
[1759667645706,0.4191,4549.3,4549.2,1.15039]
[1759667646307,0.7338,4549.3,4549.2,1.15039]
[1759667647002,0.52755699,4549.6,4549.5,0.82296]
[1759667647208,1.77245699,4549.6,4549.5,1.15036]
[1759667648511,1.24955699,4549.6,4549.5,1.28386]
[1759667648809,2.16801699,4549.6,4549.5,1.15036]
[1759667649198,2.16801699,4549.6,4549.5,0.2032]
[1759667649399,0.39556,4549.5,4549.4,0.22]
[1759667649706,1.25356,4549.5,4549.4,0.22]
[1759667652409,1.12942,4548.9,4548.8,0.2032]
[1759667652607,1.12942,4548.9,4548.8,0.4232]
[1759667653310,1.12942,4548.9,4548.8,0.7506]
[1759667654711,1.12942,4548.9,4548.8,0.22]
[1759667655104,0.7338,4548.3,4548.2,4.35828]
[1759667655307,0.7338,4548.3,4548.2,4.57828]
[1759667657715,0.7338,4548.3,4548.2,4.57548]
[1759667659917,0.7527,4548.7,4548.6,0.82534]
[1759667660120,0.7527,4548.7,4548.6,1.16084]
[1759667660319,0.5324,4549.1,4549.0,0.94441]
[1759667660619,0.7527,4549.1,4549.0,1.16081]
[1759667661020,1.1483,4549.1,4549.0,0.7652]
[1759667661322,1.1483,4549.1,4549.0,0.2164]
[1759667661521,0.94491,4549.0,4548.9,0.39561]
[1759667661715,1.27281,4549.0,4548.9,0.39561]
[1759667664424,0.8772,4549.0,4548.9,1.16081]
[1759667665122,0.7527,4549.0,4548.9,1.16081]
[1759667666422,0.5324,4549.3,4549.2,0.4297]
[1759667666627,1.39014483,4549.3,4549.2,0.7652]
[1759667667127,1.61044483,4549.3,4549.2,1.16079]
[1759667667620,1.61044483,4549.3,4549.2,0.7652]
[1759667668825,1.61044483,4549.3,4549.2,1.16079]
[1759667669026,1.61044483,4549.3,4549.2,0.7652]
[1759667669925,1.61044483,4549.3,4549.2,1.16079]
[1759667670114,1.21486483,4549.3,4549.2,1.16079]
[1759667670515,1.61044483,4549.3,4549.2,1.16079]
[1759667670725,1.21486483,4549.3,4549.2,1.16079]
[1759667671129,0.66666483,4549.3,4549.2,1.16079]
[1759667672022,1.22506483,4549.3,4549.2,1.16079]
[1759667674526,0.66666483,4549.3,4549.2,1.16079]
[1759667674828,0.46216483,4549.3,4549.2,4.36859]
[1759667675328,1.62624483,4549.3,4549.2,0.7652]
[1759667675531,1.23066483,4549.3,4549.2,0.7652]
[1759667675732,1.01056483,4549.3,4549.2,0.7652]
[1759667675935,1.01056483,4549.3,4549.2,1.16079]
[1759667677337,1.23066483,4549.3,4549.2,1.16079]
[1759667677628,1.23066483,4549.3,4549.1,0.22]
[1759667677834,1.23066483,4549.2,4549.1,0.7606]
[1759667678133,1.23071203,4549.2,4549.1,1.3816]
[1759667678634,0.7685,4549.2,4549.1,1.3816]
[1759667679036,1.23060109,4549.2,4549.1,1.3816]
[1759667679533,1.62619109,4549.2,4549.1,0.22]
[1759667680936,1.16409,4549.2,4549.1,0.7606]
[1759667681339,0.7685,4549.2,4549.1,1.1562]